[Event "Kadett-SM 2025"]
[Site "Uppsala, Sweden"]
[Date "2025.07.06"]
[Round "9.1"]
[White "Nagy, Mate"]
[Black "Morell, Oscar"]
[Result "0-1"]
[TimeControl "90 min for 40 move + 30 min with an increment of 30 sec starting move 1"]
[WhiteFideId "1758810"]
[BlackFideId "1752952"]
[WhiteElo "1934"]
[BlackElo "2001"]

1. c4 {[%clk 01:30:57]} {[%emt 00:00:02]} c6 {[%clk 01:27:04]} {[%emt
00:03:56]} 2. e4 {[%clk 01:30:09]} {[%emt 00:01:18]} e5 {[%clk 01:22:59]}
{[%emt 00:04:35]} 3. d4 {[%clk 01:26:42]} {[%emt 00:03:57]} Bb4+ {[%clk
01:05:52]} {[%emt 00:17:38]} 4. Bd2 {[%clk 01:20:27]} {[%emt 00:06:44]} Bxd2+
{[%clk 01:03:43]} {[%emt 00:02:38]} 5. Qxd2 {[%clk 01:20:34]} {[%emt 00:00:24]}
d6 {[%clk 00:57:05]} {[%emt 00:07:08]} 6. Nc3 {[%clk 01:17:24]} {[%emt
00:03:39]} Qc7 {[%clk 00:51:28]} {[%emt 00:06:08]} 7. Nf3 {[%clk 01:15:33]}
{[%emt 00:02:21]} Nf6 {[%clk 00:50:29]} {[%emt 00:01:29]} 8. Qg5 {[%clk
01:06:12]} {[%emt 00:09:51]} O-O {[%clk 00:43:43]} {[%emt 00:07:16]} 9. dxe5
{[%clk 00:58:25]} {[%emt 00:08:17]} dxe5 {[%clk 00:41:39]} {[%emt 00:02:34]} 10.
Be2 {[%clk 00:46:33]} {[%emt 00:12:22]} Re8 {[%clk 00:36:32]} {[%emt 00:05:37]}
11. O-O {[%clk 00:45:41]} {[%emt 00:01:22]} Bg4 {[%clk 00:35:27]} {[%emt
00:01:35]} 12. Nd2 {[%clk 00:39:47]} {[%emt 00:06:23]} Bxe2 {[%clk 00:34:36]}
{[%emt 00:01:22]} 13. Nxe2 {[%clk 00:40:11]} {[%emt 00:00:06]} Na6 {[%clk
00:31:24]} {[%emt 00:03:42]} 14. Ng3 {[%clk 00:34:30]} {[%emt 00:06:10]} h6
{[%clk 00:29:14]} {[%emt 00:02:41]} 15. Qh4 {[%clk 00:33:49]} {[%emt 00:01:10]}
Red8 {[%clk 00:18:43]} {[%emt 00:11:02]} 16. Nf3 {[%clk 00:32:25]} {[%emt
00:01:54]} Nc5 {[%clk 00:17:00]} {[%emt 00:02:13]} 17. b4 {[%clk 00:28:32]}
{[%emt 00:04:23]} Ne6 {[%clk 00:05:14]} {[%emt 00:12:17]} 18. Nf5 {[%clk
00:28:26]} {[%emt 00:00:34]} Nd7 {[%clk 00:00:38]} {[%emt 00:05:06]} 19. Rad1
{[%clk 00:24:57]} {[%emt 00:04:00]} Kh7 {[%clk 00:00:41]} {[%emt 00:00:27]} 20.
Rd6 {[%clk 00:23:02]} {[%emt 00:02:24]} Ndf8 {[%clk 00:00:35]} {[%emt
00:00:37]} 21. Rfd1 {[%clk 00:17:06]} {[%emt 00:06:26]} Rxd6 {[%clk 00:00:37]}
{[%emt 00:00:28]} 22. Nxd6 {[%clk 00:15:35]} {[%emt 00:02:01]} Ng6 {[%clk
00:00:34]} {[%emt 00:00:33]} 23. Qg4 {[%clk 00:14:30]} {[%emt 00:01:35]} Rd8
{[%clk 00:00:32]} {[%emt 00:00:32]} 24. c5 {[%clk 00:14:46]} {[%emt 00:00:14]}
b6 {[%clk 00:00:32]} {[%emt 00:00:30]} 25. Nxe5 {[%clk 00:09:24]} {[%emt
00:05:51]} Nxe5 {[%clk 00:01:01]} {[%emt 00:00:01]} 26. Qf5+ {[%clk 00:09:47]}
{[%emt 00:00:08]} Ng6 {[%clk 00:01:16]} {[%emt 00:00:14]} 27. h4 {[%clk
00:07:34]} {[%emt 00:02:44]} Kg8 {[%clk 00:01:45]} {[%emt 00:00:01]} 28. Rd3
{[%clk 00:06:19]} {[%emt 00:01:45]} bxc5 {[%clk 00:01:28]} {[%emt 00:00:48]} 29.
bxc5 {[%clk 00:06:47]} {[%emt 00:00:01]} Ngf4 {[%clk 00:01:06]} {[%emt
00:00:52]} 30. Rd1 {[%clk 00:05:21]} {[%emt 00:01:55]} Qe7 {[%clk 00:00:41]}
{[%emt 00:00:55]} 31. g3 {[%clk 00:04:41]} {[%emt 00:01:09]} Ne2+ {[%clk
00:01:00]} {[%emt 00:00:11]} 32. Kg2 {[%clk 00:03:57]} {[%emt 00:01:14]} Qf6
{[%clk 00:00:34]} {[%emt 00:00:56]} 33. Qg4 {[%clk 00:03:38]} {[%emt 00:00:49]}
Nc3 {[%clk 00:00:32]} {[%emt 00:00:33]} 34. Re1 {[%clk 00:02:18]} {[%emt
00:01:50]} Nxc5 {[%clk 00:00:37]} {[%emt 00:00:25]} 35. e5 {[%clk 00:02:30]}
{[%emt 00:00:17]} Qg6 {[%clk 00:00:33]} {[%emt 00:00:35]} 36. Qc4 {[%clk
00:01:58]} {[%emt 00:01:02]} N3a4 {[%clk 00:00:38]} {[%emt 00:00:25]} 37. f4
{[%clk 00:01:54]} {[%emt 00:00:33]} Qe6 {[%clk 00:00:42]} {[%emt 00:00:27]} 38.
Qe2 {[%clk 00:01:51]} {[%emt 00:00:33]} Nc3 {[%clk 00:00:39]} {[%emt 00:00:32]}
39. Qe3 {[%clk 00:01:53]} {[%emt 00:00:28]} Qxa2+ {[%clk 00:00:37]} {[%emt
00:00:33]} 40. Kh3 {[%clk 00:02:10]} {[%emt 00:00:13]} N3a4 {[%clk 00:00:32]}
{[%emt 00:00:34]} 41. f5 {[%clk 00:29:34]} {[%emt 00:03:07]} Qd5 {[%clk
00:18:47]} {[%emt 00:12:15]} 42. g4 {[%clk 00:23:33]} {[%emt 00:06:31]} Qd3
{[%clk 00:17:40]} {[%emt 00:01:37]} 43. Qxd3 {[%clk 00:23:47]} {[%emt
00:00:16]} Nxd3 {[%clk 00:17:59]} {[%emt 00:00:09]} 44. Re3 {[%clk 00:22:48]}
{[%emt 00:01:30]} Nxe5 {[%clk 00:18:07]} {[%emt 00:00:21]} 45. Nb7 {[%clk
00:23:02]} {[%emt 00:00:17]} Rd3 {[%clk 00:18:31]} {[%emt 00:00:06]} 46. Rxd3
{[%clk 00:23:25]} {[%emt 00:00:07]} Nxd3 {[%clk 00:19:00]} {[%emt 00:00:01]}
0-1

[Event "Kadett-SM 2025"]
[Site "Uppsala, Sweden"]
[Date "2025.07.06"]
[Round "9.2"]
[White "Ljungros, Lo"]
[Black "Prabu, Dananjey"]
[Result "1-0"]
[TimeControl "90 min for 40 move + 30 min with an increment of 30 sec starting move 1"]
[WhiteFideId "1760114"]
[BlackFideId "25744992"]
[WhiteElo "2051"]
[BlackElo "2047"]

1. e4 {[%clk 01:30:42]} {[%emt 00:00:17]} e6 {[%clk 01:30:55]} {[%emt
00:00:05]} 2. d3 {[%clk 01:25:15]} {[%emt 00:05:58]} d5 {[%clk 01:31:17]}
{[%emt 00:00:07]} 3. Nd2 {[%clk 01:25:36]} {[%emt 00:00:09]} c5 {[%clk
01:31:41]} {[%emt 00:00:05]} 4. g3 {[%clk 01:25:43]} {[%emt 00:00:24]} Nc6
{[%clk 01:29:59]} {[%emt 00:02:12]} 5. Bg2 {[%clk 01:25:59]} {[%emt 00:00:15]}
Nf6 {[%clk 01:28:48]} {[%emt 00:01:39]} 6. Ngf3 {[%clk 01:22:44]} {[%emt
00:03:46]} Be7 {[%clk 01:26:15]} {[%emt 00:03:04]} 7. O-O {[%clk 01:22:38]}
{[%emt 00:00:35]} O-O {[%clk 01:25:27]} {[%emt 00:01:17]} 8. a4 {[%clk
01:19:56]} {[%emt 00:03:14]} Qc7 {[%clk 01:17:01]} {[%emt 00:08:55]} 9. Re1
{[%clk 01:18:53]} {[%emt 00:01:33]} Rd8 {[%clk 01:15:13]} {[%emt 00:02:18]} 10.
h4 {[%clk 01:14:50]} {[%emt 00:04:33]} h6 {[%clk 01:14:00]} {[%emt 00:01:43]}
11. c3 {[%clk 01:12:47]} {[%emt 00:02:34]} e5 {[%clk 01:05:21]} {[%emt
00:09:09]} 12. Qc2 {[%clk 01:05:24]} {[%emt 00:07:53]} Be6 {[%clk 01:04:41]}
{[%emt 00:01:09]} 13. Nf1 {[%clk 00:48:25]} {[%emt 00:17:30]} Rac8 {[%clk
01:02:49]} {[%emt 00:02:22]} 14. Ne3 {[%clk 00:46:38]} {[%emt 00:02:16]} d4
{[%clk 00:56:03]} {[%emt 00:07:16]} 15. Nc4 {[%clk 00:43:10]} {[%emt 00:03:58]}
b6 {[%clk 00:43:18]} {[%emt 00:13:16]} 16. Bd2 {[%clk 00:34:07]} {[%emt
00:09:32]} Ne8 {[%clk 00:28:44]} {[%emt 00:15:04]} 17. cxd4 {[%clk 00:28:58]}
{[%emt 00:05:40]} Nxd4 {[%clk 00:26:14]} {[%emt 00:02:59]} 18. Nxd4 {[%clk
00:29:02]} {[%emt 00:00:27]} cxd4 {[%clk 00:26:40]} {[%emt 00:00:04]} 19. b3
{[%clk 00:26:52]} {[%emt 00:02:39]} Nd6 {[%clk 00:10:43]} {[%emt 00:16:27]} 20.
Qd1 {[%clk 00:25:14]} {[%emt 00:02:08]} Nxc4 {[%clk 00:09:31]} {[%emt
00:01:43]} 21. bxc4 {[%clk 00:25:36]} {[%emt 00:00:08]} Qd7 {[%clk 00:08:54]}
{[%emt 00:01:06]} 22. Qe2 {[%clk 00:24:31]} {[%emt 00:01:36]} Rc5 {[%clk
00:06:53]} {[%emt 00:02:31]} 23. Reb1 {[%clk 00:23:24]} {[%emt 00:01:36]} Rb8
{[%clk 00:04:44]} {[%emt 00:02:40]} 24. a5 {[%clk 00:22:19]} {[%emt 00:01:35]}
Bd8 {[%clk 00:04:39]} {[%emt 00:00:34]} 25. axb6 {[%clk 00:21:10]} {[%emt
00:01:39]} Rxb6 {[%clk 00:05:01]} {[%emt 00:00:09]} 26. Bb4 {[%clk 00:19:01]}
{[%emt 00:02:39]} Rc8 {[%clk 00:05:21]} {[%emt 00:00:09]} 27. Bd2 {[%clk
00:15:31]} {[%emt 00:04:01]} Rcb8 {[%clk 00:05:32]} {[%emt 00:00:19]} 28. Rxb6
{[%clk 00:15:44]} {[%emt 00:00:17]} axb6 {[%clk 00:04:44]} {[%emt 00:01:18]} 29.
f4 {[%clk 00:13:30]} {[%emt 00:02:44]} f6 {[%clk 00:03:02]} {[%emt 00:02:12]}
30. f5 {[%clk 00:09:57]} {[%emt 00:04:03]} Bf7 {[%clk 00:03:29]} {[%emt
00:00:03]} 31. Bf3 {[%clk 00:10:07]} {[%emt 00:00:20]} b5 {[%clk 00:03:00]}
{[%emt 00:00:59]} 32. Rb1 {[%clk 00:09:25]} {[%emt 00:01:11]} Rb7 {[%clk
00:03:27]} {[%emt 00:00:04]} 33. cxb5 {[%clk 00:08:59]} {[%emt 00:00:56]} Rxb5
{[%clk 00:03:53]} {[%emt 00:00:05]} 34. Qd1 {[%clk 00:09:05]} {[%emt 00:00:22]}
Ba2 {[%clk 00:02:01]} {[%emt 00:02:22]} 35. Ra1 {[%clk 00:07:52]} {[%emt
00:01:44]} Bf7 {[%clk 00:00:35]} {[%emt 00:01:56]} 36. Bh5 {[%clk 00:08:06]}
{[%emt 00:00:15]} Bb6 {[%clk 00:00:33]} {[%emt 00:00:33]} 37. Ra8+ {[%clk
00:07:27]} {[%emt 00:01:10]} Kh7 {[%clk 00:01:02]} 38. Qg4 {[%clk 00:07:17]}
{[%emt 00:00:40]} Bd8 {[%clk 00:01:31]} {[%emt 00:00:01]} 39. Bg6+ {[%clk
00:04:37]} {[%emt 00:03:10]} Kg8 {[%clk 00:01:29]} {[%emt 00:00:31]} 40. Bxf7+
{[%clk 00:02:04]} {[%emt 00:03:03]} Kxf7 {[%clk 00:01:53]} {[%emt 00:00:06]} 41.
Qg6+ {[%clk 00:02:13]} {[%emt 00:00:21]} Kf8 {[%clk 00:29:40]} {[%emt
00:02:43]} 42. Qh7 {[%clk 00:30:16]} {[%emt 00:02:26]} Rb1+ {[%clk 00:21:39]}
{[%emt 00:08:31]} 43. Kf2 {[%clk 00:30:26]} {[%emt 00:00:20]} Qe8 {[%clk
00:13:52]} {[%emt 00:08:17]} 44. Ba5 {[%clk 00:27:48]} {[%emt 00:03:08]} Rb2+
{[%clk 00:14:05]} {[%emt 00:00:17]} 45. Kg1 {[%clk 00:28:01]} {[%emt 00:00:16]}
Ke7 {[%clk 00:06:51]} {[%emt 00:07:45]} 46. Qxg7+ {[%clk 00:28:00]} {[%emt
00:00:31]} Kd6 {[%clk 00:06:42]} {[%emt 00:00:40]} 47. Rxd8+ {[%clk 00:28:22]}
{[%emt 00:00:08]} Qxd8 {[%clk 00:06:51]} {[%emt 00:00:20]} 48. Bxd8 {[%clk
00:28:44]} {[%emt 00:00:09]} Kc5 {[%clk 00:07:06]} {[%emt 00:00:15]} 49. Qe7+
{[%clk 00:28:42]} {[%emt 00:00:31]} Kc6 {[%clk 00:07:00]} {[%emt 00:00:36]} 50.
Qc7+ {[%clk 00:29:06]} {[%emt 00:00:06]} Kb5 {[%clk 00:07:27]} {[%emt
00:00:04]} 51. Qb8+ {[%clk 00:29:25]} {[%emt 00:00:11]} Kc6 {[%clk 00:07:50]}
{[%emt 00:00:07]} 52. Qxb2 {[%clk 00:29:46]} {[%emt 00:00:08]} h5 {[%clk
00:08:16]} {[%emt 00:00:05]} 53. Qb6+ {[%clk 00:30:10]} {[%emt 00:00:06]} Kd7
{[%clk 00:08:42]} {[%emt 00:00:04]} 54. Qc7+ {[%clk 00:30:33]} {[%emt
00:00:07]} Ke8 {[%clk 00:09:08]} {[%emt 00:00:04]} 55. Qe7# {[%emt 00:00:35]}
1-0

[Event "Kadett-SM 2025"]
[Site "Uppsala, Sweden"]
[Date "2025.07.06"]
[Round "9.3"]
[White "Berling, Egil"]
[Black "Strand, Sixten"]
[Result "1-0"]
[TimeControl "90 min for 40 move + 30 min with an increment of 30 sec starting move 1"]
[WhiteFideId "1781197"]
[BlackFideId "1784137"]
[WhiteElo "2004"]
[BlackElo "1981"]

1. d4 {[%clk 01:30:57]} {[%emt 00:00:02]} Nc6 {[%clk 01:30:32]} {[%emt
00:00:28]} 2. Nc3 {[%clk 01:28:11]} {[%emt 00:03:16]} e5 {[%clk 01:30:55]}
{[%emt 00:00:08]} 3. Nf3 {[%clk 01:27:23]} {[%emt 00:01:17]} d6 {[%clk
01:30:56]} {[%emt 00:00:29]} 4. e4 {[%clk 01:23:09]} {[%emt 00:04:44]} Bg4
{[%clk 01:31:03]} {[%emt 00:00:22]} 5. d5 {[%clk 01:22:59]} {[%emt 00:00:41]}
Nd4 {[%clk 01:30:38]} {[%emt 00:00:55]} 6. Be3 {[%clk 01:21:46]} {[%emt
00:01:44]} Nxf3+ {[%clk 01:28:08]} {[%emt 00:02:59]} 7. gxf3 {[%clk 01:22:08]}
{[%emt 00:00:08]} Bd7 {[%clk 01:28:32]} {[%emt 00:00:06]} 8. Qd2 {[%clk
01:17:23]} {[%emt 00:05:16]} f5 {[%clk 01:24:39]} {[%emt 00:04:22]} 9. exf5
{[%clk 01:09:04]} {[%emt 00:08:49]} Bxf5 {[%clk 01:21:50]} {[%emt 00:03:19]} 10.
O-O-O {[%clk 01:07:39]} {[%emt 00:01:54]} a6 {[%clk 01:16:20]} {[%emt
00:06:01]} 11. f4 {[%clk 01:03:23]} {[%emt 00:04:45]} exf4 {[%clk 01:14:29]}
{[%emt 00:02:22]} 12. Bxf4 {[%clk 01:03:34]} {[%emt 00:00:20]} Qd7 {[%clk
01:14:38]} {[%emt 00:00:20]} 13. Bc4 {[%clk 00:54:41]} {[%emt 00:09:23]} O-O-O
{[%clk 01:11:51]} {[%emt 00:03:17]} 14. Qd4 {[%clk 00:53:52]} {[%emt 00:01:19]}
c5 {[%clk 01:01:59]} {[%emt 00:10:21]} 15. dxc6 {[%clk 00:53:32]} {[%emt
00:00:51]} Qxc6 {[%clk 01:02:21]} {[%emt 00:00:08]} 16. Bd5 {[%clk 00:48:55]}
{[%emt 00:05:07]} Qc7 {[%clk 01:00:05]} {[%emt 00:02:45]} 17. Bxg8 {[%clk
00:47:13]} {[%emt 00:02:13]} 1-0

[Event "Kadett-SM 2025"]
[Site "Uppsala, Sweden"]
[Date "2025.07.05"]
[Round "8.2"]
[White "Zheng, Chale"]
[Black "Ljungros, Lo"]
[Result "0-1"]
[TimeControl "90 min for 40 move + 30 min with an increment of 30 sec starting move 1"]
[WhiteFideId "1774425"]
[BlackFideId "1760114"]
[WhiteElo "1881"]
[BlackElo "2051"]

1. e4 {[%clk 01:30:57]} {[%emt 00:00:02]} e6 {[%clk 01:30:55]} {[%emt
00:00:06]} 2. d4 {[%clk 01:31:24]} {[%emt 00:00:04]} d5 {[%clk 01:31:20]}
{[%emt 00:00:04]} 3. exd5 {[%clk 01:31:21]} {[%emt 00:00:34]} exd5 {[%clk
01:31:02]} {[%emt 00:00:47]} 4. Bd3 {[%clk 01:31:38]} {[%emt 00:00:14]} Bd6
{[%clk 01:31:21]} {[%emt 00:00:09]} 5. Nf3 {[%clk 01:31:29]} {[%emt 00:00:39]}
Ne7 {[%clk 01:30:53]} {[%emt 00:00:57]} 6. O-O {[%clk 01:30:12]} {[%emt
00:01:48]} Bg4 {[%clk 01:30:18]} {[%emt 00:01:05]} 7. Re1 {[%clk 01:29:13]}
{[%emt 00:01:29]} c6 {[%clk 01:28:39]} {[%emt 00:02:09]} 8. c3 {[%clk
01:29:10]} {[%emt 00:00:33]} Qc7 {[%clk 01:28:40]} {[%emt 00:00:29]} 9. h3
{[%clk 01:24:52]} {[%emt 00:04:48]} Bh5 {[%emt 00:10:43]} 10. Nbd2 {[%clk
01:13:53]} {[%emt 00:01:27]} Nd7 {[%clk 01:25:34]} {[%emt 00:03:22]} 11. Qc2
{[%clk 01:01:59]} {[%emt 00:12:26]} O-O-O {[%clk 01:21:55]} {[%emt 00:04:08]}
12. b4 {[%clk 00:54:18]} {[%emt 00:08:12]} g5 {[%clk 01:13:08]} {[%emt
00:09:15]} 13. Nxg5 {[%clk 00:48:25]} {[%emt 00:06:25]} Rhg8 {[%clk 01:09:17]}
{[%emt 00:04:21]} 14. Ngf3 {[%clk 00:46:44]} {[%emt 00:02:08]} Ng6 {[%clk
01:05:20]} {[%emt 00:04:30]} 15. Bxg6 {[%clk 00:35:28]} {[%emt 00:11:46]} Bxg6
{[%clk 01:02:17]} {[%emt 00:03:33]} 16. Qa4 {[%clk 00:30:24]} {[%emt 00:05:31]}
Kb8 {[%clk 00:57:24]} {[%emt 00:05:25]} 17. c4 {[%clk 00:25:41]} {[%emt
00:05:14]} Bf5 {[%clk 00:50:58]} {[%emt 00:06:56]} 18. Kh1 {[%clk 00:23:11]}
{[%emt 00:03:00]} Qc8 {[%clk 00:41:14]} {[%emt 00:10:14]} 19. Ng1 {[%clk
00:10:01]} {[%emt 00:13:39]} Nb6 {[%clk 00:39:11]} {[%emt 00:02:34]} 20. Qb3
{[%clk 00:09:20]} {[%emt 00:01:10]} dxc4 {[%clk 00:39:13]} {[%emt 00:00:29]} 21.
Nxc4 {[%clk 00:09:01]} {[%emt 00:00:49]} Nxc4 {[%clk 00:39:36]} {[%emt
00:00:07]} 22. Qxc4 {[%clk 00:09:22]} {[%emt 00:00:09]} Be6 {[%clk 00:40:00]}
{[%emt 00:00:05]} 23. Qc3 {[%clk 00:08:46]} {[%emt 00:01:05]} Bd5 {[%clk
00:40:24]} {[%emt 00:00:08]} 24. f3 {[%clk 00:07:18]} {[%emt 00:01:57]} Rg3
{[%clk 00:39:33]} {[%emt 00:01:21]} 25. Ne2 {[%clk 00:02:08]} {[%emt 00:05:41]}
Bxf3 {[%clk 00:39:18]} {[%emt 00:00:46]} 26. Nf4 {[%clk 00:00:57]} {[%emt
00:01:36]} Bxg2+ {[%clk 00:39:33]} {[%emt 00:00:18]} 27. Nxg2 {[%clk 00:01:01]}
{[%emt 00:00:27]} Qxh3+ {[%clk 00:39:53]} {[%emt 00:00:10]} 0-1

[Event "Kadett-SM 2025"]
[Site "Uppsala, Sweden"]
[Date "2025.07.05"]
[Round "8.3"]
[White "Dingertz, Filip"]
[Black "Nagy, Mate"]
[Result "0-1"]
[TimeControl "90 min for 40 move + 30 min with an increment of 30 sec starting move 1"]
[WhiteFideId "1757288"]
[BlackFideId "1758810"]
[WhiteElo "2043"]
[BlackElo "1934"]

1. a3 {[%clk 01:30:28]} {[%emt 00:00:31]} a6 {[%clk 01:30:26]} {[%emt
00:00:35]} 2. b4 {[%clk 01:27:51]} {[%emt 00:03:07]} d5 {[%clk 01:30:13]}
{[%emt 00:00:43]} 3. d4 {[%clk 01:27:15]} {[%emt 00:01:06]} Bf5 {[%clk
01:29:29]} {[%emt 00:01:14]} 4. Nf3 {[%clk 01:26:32]} {[%emt 00:01:13]} e6
{[%clk 01:27:44]} {[%emt 00:02:14]} 5. e3 {[%clk 01:16:27]} {[%emt 00:10:35]}
Nd7 {[%clk 01:24:41]} {[%emt 00:03:32]} 6. Bd3 {[%clk 01:16:02]} {[%emt
00:00:56]} Ngf6 {[%clk 01:23:39]} {[%emt 00:01:32]} 7. O-O {[%clk 01:13:49]}
{[%emt 00:02:42]} Bd6 {[%clk 01:14:33]} {[%emt 00:09:37]} 8. c4 {[%clk
01:12:01]} {[%emt 00:02:18]} Bxd3 {[%clk 01:11:47]} {[%emt 00:03:16]} 9. Qxd3
{[%clk 01:12:25]} {[%emt 00:00:05]} dxc4 {[%clk 01:12:04]} {[%emt 00:00:13]} 10.
Qxc4 {[%clk 01:12:15]} {[%emt 00:00:41]} O-O {[%clk 01:03:44]} {[%emt
00:08:50]} 11. Bb2 {[%clk 01:09:31]} {[%emt 00:03:13]} Re8 {[%clk 01:03:28]}
{[%emt 00:00:47]} 12. Ne5 {[%clk 00:47:31]} {[%emt 00:22:30]} Nd5 {[%clk
00:50:39]} {[%emt 00:13:18]} 13. Nxd7 {[%clk 00:43:28]} {[%emt 00:04:34]} Qxd7
{[%clk 00:50:47]} {[%emt 00:00:22]} 14. Qb3 {[%clk 00:40:13]} {[%emt 00:03:44]}
Nf6 {[%clk 00:44:37]} {[%emt 00:06:40]} 15. f4 {[%clk 00:38:00]} {[%emt
00:02:44]} a5 {[%clk 00:39:31]} {[%emt 00:05:35]} 16. bxa5 {[%clk 00:35:45]}
{[%emt 00:02:46]} Rxa5 {[%clk 00:38:12]} {[%emt 00:01:49]} 17. Nd2 {[%clk
00:34:58]} {[%emt 00:01:16]} Rb5 {[%clk 00:32:23]} {[%emt 00:06:20]} 18. Qc2
{[%clk 00:35:00]} {[%emt 00:00:28]} Nd5 {[%clk 00:31:15]} {[%emt 00:01:38]} 19.
Nc4 {[%clk 00:34:50]} {[%emt 00:00:39]} Qc6 {[%clk 00:27:47]} {[%emt 00:03:58]}
20. Rac1 {[%clk 00:34:50]} {[%emt 00:00:31]} Nb6 {[%clk 00:24:16]} {[%emt
00:04:01]} 21. Qe2 {[%clk 00:21:32]} {[%emt 00:13:48]} Nxc4 {[%clk 00:22:21]}
{[%emt 00:02:24]} 22. Rxc4 {[%clk 00:21:35]} {[%emt 00:00:27]} Rxb2 {[%clk
00:21:45]} {[%emt 00:01:06]} 0-1

[Event "Kadett-SM 2025"]
[Site "Uppsala, Sweden"]
[Date "2025.07.05"]
[Round "8.4"]
[White "Nodtveidt, Svante"]
[Black "Berling, Egil"]
[Result "0-1"]
[TimeControl "90 min for 40 move + 30 min with an increment of 30 sec starting move 1"]
[WhiteFideId "1774450"]
[BlackFideId "1781197"]
[WhiteElo "1838"]
[BlackElo "2004"]

1. d4 {[%clk 01:30:54]} {[%emt 00:00:05]} e6 {[%clk 01:30:56]} {[%emt
00:00:05]} 2. e4 {[%clk 01:31:05]} {[%emt 00:00:19]} b6 {[%clk 01:31:15]}
{[%emt 00:00:10]} 3. Nf3 {[%clk 01:30:31]} {[%emt 00:01:04]} Bb7 {[%clk
01:31:40]} {[%emt 00:00:06]} 4. Bd3 {[%clk 01:30:12]} {[%emt 00:00:49]} d5
{[%clk 01:32:02]} {[%emt 00:00:08]} 5. e5 {[%clk 01:25:08]} {[%emt 00:05:33]}
c5 {[%clk 01:32:21]} {[%emt 00:00:11]} 6. c3 {[%clk 01:25:27]} {[%emt
00:00:11]} Qd7 {[%clk 01:32:45]} {[%emt 00:00:06]} 7. a4 {[%clk 01:21:55]}
{[%emt 00:04:04]} Ba6 {[%clk 01:29:39]} {[%emt 00:03:36]} 8. O-O {[%clk
01:17:09]} {[%emt 00:05:15]} Ne7 {[%clk 01:24:20]} {[%emt 00:05:49]} 9. Re1
{[%clk 01:08:05]} {[%emt 00:09:33]} Bxd3 {[%clk 01:22:26]} {[%emt 00:02:24]} 10.
Qxd3 {[%clk 01:07:23]} {[%emt 00:01:12]} Nbc6 {[%clk 01:21:01]} {[%emt
00:01:56]} 11. Bg5 {[%clk 00:58:52]} {[%emt 00:09:00]} h6 {[%clk 01:15:09]}
{[%emt 00:06:22]} 12. Bxe7 {[%clk 00:58:11]} {[%emt 00:01:12]} Bxe7 {[%clk
01:15:13]} {[%emt 00:00:25]} 13. Nbd2 {[%clk 00:57:36]} {[%emt 00:01:05]} O-O
{[%clk 01:10:20]} {[%emt 00:05:22]} 14. b3 {[%clk 00:51:02]} {[%emt 00:07:05]}
Rac8 {[%clk 01:06:38]} {[%emt 00:04:11]} 15. h4 {[%clk 00:49:15]} {[%emt
00:02:18]} cxd4 {[%clk 01:05:42]} {[%emt 00:01:27]} 16. Nxd4 {[%clk 00:49:32]}
{[%emt 00:00:13]} Bxh4 {[%clk 01:05:00]} {[%emt 00:01:12]} 17. g3 {[%clk
00:49:11]} {[%emt 00:00:51]} Be7 {[%clk 01:03:57]} {[%emt 00:01:32]} 18. Kg2
{[%clk 00:49:26]} {[%emt 00:00:16]} Nxd4 {[%emt 00:10:20]} 19. cxd4 {[%clk
00:45:52]} {[%emt 00:01:41]} Bb4 {[%clk 00:53:58]} {[%emt 00:03:02]} 20. Rec1
{[%clk 00:44:14]} {[%emt 00:02:08]} Bxd2 {[%clk 00:43:05]} {[%emt 00:11:22]} 21.
Qxd2 {[%clk 00:44:31]} {[%emt 00:00:14]} Rxc1 {[%clk 00:40:19]} {[%emt
00:03:15]} 22. Rxc1 {[%clk 00:44:22]} {[%emt 00:00:39]} f6 {[%clk 00:40:08]}
{[%emt 00:00:42]} 23. f4 {[%clk 00:43:29]} {[%emt 00:01:23]} fxe5 {[%clk
00:40:19]} {[%emt 00:00:19]} 24. fxe5 {[%clk 00:43:05]} {[%emt 00:00:54]} Qf7
{[%clk 00:39:08]} {[%emt 00:01:40]} 25. b4 {[%clk 00:41:25]} {[%emt 00:02:10]}
Qf3+ {[%clk 00:38:51]} {[%emt 00:00:47]} 0-1